[Event "*** Titled Tuesday Blitz"]
[Site "Chess.com"]
[Date "2021.04.06"]
[Round "3"]
[White "PotapovaM"]
[Black "j2806"]
[Result "1-0"]
[WhiteElo "2490"]
[BlackElo "2155"]
[TimeControl "180+1"]
[EndTime "10:28:04 PDT"]
[Termination "PotapovaM won by checkmate"]

1. e4 {[%clk 0:02:59.7]} 1... c5 {[%clk 0:03:00.2]} 2. Nf3 {[%clk 0:02:58.9]}
2... d6 {[%clk 0:03:00.3]} 3. d4 {[%clk 0:02:58.4]} 3... cxd4 {[%clk 0:03:01]}
4. Nxd4 {[%clk 0:02:58.9]} 4... Nf6 {[%clk 0:03:01.6]} 5. Nc3 {[%clk 0:02:59.4]}
5... a6 {[%clk 0:03:02.2]} 6. Be3 {[%clk 0:02:50.6]} 6... e5 {[%clk 0:02:53.3]}
7. Nb3 {[%clk 0:02:49.9]} 7... Be6 {[%clk 0:02:52.9]} 8. f3 {[%clk 0:02:50.2]}
8... Nbd7 {[%clk 0:02:39.9]} 9. Qd2 {[%clk 0:02:49.7]} 9... Be7 {[%clk
0:02:35.3]} 10. O-O-O {[%clk 0:02:49.4]} 10... Qc7 {[%clk 0:02:35.9]} 11. g4
{[%clk 0:02:49.3]} 11... b5 {[%clk 0:02:33.1]} 12. Kb1 {[%clk 0:02:41.1]} 12...
Rc8 {[%clk 0:02:25]} 13. g5 {[%clk 0:02:35.2]} 13... Nh5 {[%clk 0:02:23.3]} 14.
Nd5 {[%clk 0:02:28.5]} 14... Bxd5 {[%clk 0:02:22.5]} 15. exd5 {[%clk 0:02:29.4]}
15... O-O {[%clk 0:02:15.9]} 16. Na5 {[%clk 0:02:26]} 16... Nb8 {[%clk
0:02:05.1]} 17. Rc1 {[%clk 0:02:14.1]} 17... Nf4 {[%clk 0:01:52.5]} 18. c4
{[%clk 0:02:07.3]} 18... bxc4 {[%clk 0:01:17.2]} 19. Bxc4 {[%clk 0:02:07.1]}
19... Qd7 {[%clk 0:01:00.8]} 20. h4 {[%clk 0:02:07.7]} 20... Qa4 {[%clk
0:00:51]} 21. b3 {[%clk 0:01:59.2]} 21... Qd7 {[%clk 0:00:50.6]} 22. Bxf4 {[%clk
0:01:48]} 22... exf4 {[%clk 0:00:50.4]} 23. Rhe1 {[%clk 0:01:35.8]} 23... f6
{[%clk 0:00:49.1]} 24. g6 {[%clk 0:01:19]} 24... h6 {[%clk 0:00:36.2]} 25. Nc6
{[%clk 0:01:07.7]} 25... Bd8 {[%clk 0:00:32]} 26. Qxf4 {[%clk 0:01:00.5]} 26...
Kh8 {[%clk 0:00:31.7]} 27. Nd4 {[%clk 0:00:58]} 27... Bb6 {[%clk 0:00:25.8]} 28.
Nf5 {[%clk 0:00:55.5]} 28... Rce8 {[%clk 0:00:18.9]} 29. Nxd6 {[%clk 0:00:52.2]}
29... Rxe1 {[%clk 0:00:18.3]} 30. Rxe1 {[%clk 0:00:53.1]} 30... Bc7 {[%clk
0:00:18.1]} 31. Re6 {[%clk 0:00:51]} 31... Rd8 {[%clk 0:00:16]} 32. Nf7+ {[%clk
0:00:49.1]} 32... Kg8 {[%clk 0:00:14.8]} 33. Qe4 {[%clk 0:00:44.1]} 33... Rf8
{[%clk 0:00:14.2]} 34. Re7 {[%clk 0:00:40.7]} 34... Qc8 {[%clk 0:00:13]} 35.
Nxh6+ {[%clk 0:00:41]} 35... gxh6 {[%clk 0:00:12.5]} 36. d6+ {[%clk 0:00:41.2]}
36... Kh8 {[%clk 0:00:12.5]} 37. Rh7# {[%clk 0:00:41.9]} 1-0

[Event "*** Titled Tuesday Blitz"]
[Site "Chess.com"]
[Date "2021.04.06"]
[Round "3"]
[White "beto-betun"]
[Black "Tekushka"]
[Result "1-0"]
[WhiteElo "2222"]
[BlackElo "2400"]
[TimeControl "180+1"]
[EndTime "10:28:04 PDT"]
[Termination "beto-betun won by checkmate"]

1. d4 {[%clk 0:02:47.3]} 1... Nf6 {[%clk 0:02:59.1]} 2. Nf3 {[%clk 0:02:47.3]}
2... g6 {[%clk 0:02:58.7]} 3. g3 {[%clk 0:02:47.6]} 3... c5 {[%clk 0:02:56.2]}
4. Bg2 {[%clk 0:02:46.7]} 4... Bg7 {[%clk 0:02:54.4]} 5. O-O {[%clk 0:02:45.7]}
5... cxd4 {[%clk 0:02:49]} 6. Nxd4 {[%clk 0:02:46.6]} 6... O-O {[%clk
0:02:48.5]} 7. c4 {[%clk 0:02:46.5]} 7... Nc6 {[%clk 0:02:45]} 8. Nc3 {[%clk
0:02:42.9]} 8... Qa5 {[%clk 0:02:42.8]} 9. Nxc6 {[%clk 0:02:20]} 9... dxc6
{[%clk 0:02:28.8]} 10. Qc2 {[%clk 0:02:13.3]} 10... Qh5 {[%clk 0:02:26.6]} 11.
h4 {[%clk 0:01:12.3]} 11... h6 {[%clk 0:01:39.3]} 12. Rd1 {[%clk 0:01:10.2]}
12... g5 {[%clk 0:01:35.3]} 13. hxg5 {[%clk 0:01:06.3]} 13... hxg5 {[%clk
0:01:35.2]} 14. Qd2 {[%clk 0:01:00.3]} 14... Be6 {[%clk 0:01:10.6]} 15. Qxg5
{[%clk 0:00:53.1]} 15... Qxg5 {[%clk 0:01:08.6]} 16. Bxg5 {[%clk 0:00:54]} 16...
Bxc4 {[%clk 0:01:08.9]} 17. b3 {[%clk 0:00:51.7]} 17... Be6 {[%clk 0:01:05.5]}
18. Rac1 {[%clk 0:00:49.9]} 18... Rfd8 {[%clk 0:01:02.3]} 19. e3 {[%clk
0:00:45.4]} 19... Kf8 {[%clk 0:00:57.8]} 20. Ne2 {[%clk 0:00:41.2]} 20... Nh7
{[%clk 0:00:30.9]} 21. Bf4 {[%clk 0:00:38.3]} 21... Bg4 {[%clk 0:00:21.1]} 22.
f3 {[%clk 0:00:36.6]} 22... Bf5 {[%clk 0:00:20.6]} 23. e4 {[%clk 0:00:34.3]}
23... Bg6 {[%clk 0:00:20.2]} 24. Be3 {[%clk 0:00:32.5]} 24... a5 {[%clk
0:00:17.2]} 25. Kf2 {[%clk 0:00:30.5]} 25... Rxd1 {[%clk 0:00:15.4]} 26. Rxd1
{[%clk 0:00:30.4]} 26... a4 {[%clk 0:00:16.3]} 27. Rd7 {[%clk 0:00:26.5]} 27...
axb3 {[%clk 0:00:12]} 28. axb3 {[%clk 0:00:27.4]} 28... Ra2 {[%clk 0:00:10.9]}
29. Rd8# {[%clk 0:00:23.9]} 1-0

[Event "*** Titled Tuesday Blitz"]
[Site "Chess.com"]
[Date "2021.04.06"]
[Round "3"]
[White "chessmadara"]
[Black "ama18"]
[Result "0-1"]
[WhiteElo "2190"]
[BlackElo "2496"]
[TimeControl "180+1"]
[EndTime "10:28:05 PDT"]
[Termination "ama18 won by resignation"]

1. e4 {[%clk 0:03:00.9]} 1... c5 {[%clk 0:02:59.6]} 2. Nf3 {[%clk 0:03:00.2]}
2... d6 {[%clk 0:03:00.2]} 3. d4 {[%clk 0:03:00]} 3... cxd4 {[%clk 0:03:01.1]}
4. Nxd4 {[%clk 0:03:00]} 4... Nf6 {[%clk 0:03:01.8]} 5. Nc3 {[%clk 0:02:59.1]}
5... a6 {[%clk 0:03:02.4]} 6. g3 {[%clk 0:02:57.9]} 6... Bd7 {[%clk 0:02:59.9]}
7. Bg2 {[%clk 0:02:56.8]} 7... Nc6 {[%clk 0:03:00.5]} 8. O-O {[%clk 0:02:54.8]}
8... Rc8 {[%clk 0:03:01]} 9. Be3 {[%clk 0:02:46.8]} 9... g6 {[%clk 0:03:00.8]}
10. Nd5 {[%clk 0:02:35]} 10... Bg7 {[%clk 0:02:42]} 11. Nf5 {[%clk 0:02:12.2]}
11... Bxf5 {[%clk 0:02:26.6]} 12. exf5 {[%clk 0:02:06.6]} 12... Nxd5 {[%clk
0:02:24.7]} 13. Qxd5 {[%clk 0:02:05.6]} 13... O-O {[%clk 0:02:09.3]} 14. c3
{[%clk 0:01:50.6]} 14... b5 {[%clk 0:02:07.5]} 15. h4 {[%clk 0:01:46.6]} 15...
Ne5 {[%clk 0:01:56.8]} 16. Bd4 {[%clk 0:01:36.2]} 16... Nc4 {[%clk 0:01:54.2]}
17. Bxg7 {[%clk 0:01:32.8]} 17... Kxg7 {[%clk 0:01:55.1]} 18. Qd4+ {[%clk
0:01:27.6]} 18... Kg8 {[%clk 0:01:54.3]} 19. h5 {[%clk 0:01:23.9]} 19... gxf5
{[%clk 0:01:46.1]} 20. h6 {[%clk 0:01:11.5]} 20... e5 {[%clk 0:01:44.9]} 21. Qd3
{[%clk 0:01:03.3]} 21... Qf6 {[%clk 0:01:43.5]} 22. b3 {[%clk 0:01:01.3]} 22...
e4 {[%clk 0:01:32.3]} 23. Qe2 {[%clk 0:00:39]} 23... Ne5 {[%clk 0:01:29.1]} 24.
Qe3 {[%clk 0:00:32.2]} 24... Ng4 {[%clk 0:01:26.7]} 25. Qb6 {[%clk 0:00:31.8]}
25... Rxc3 {[%clk 0:01:20.1]} 26. Bh3 {[%clk 0:00:23.5]} 26... Qxh6 {[%clk
0:01:08.6]} 27. Bxg4 {[%clk 0:00:23.5]} 27... fxg4 {[%clk 0:01:09.5]} 28. Rad1
{[%clk 0:00:23.1]} 28... Rd3 {[%clk 0:01:06.8]} 29. Rde1 {[%clk 0:00:21.5]}
29... f5 {[%clk 0:01:02]} 30. Rc1 {[%clk 0:00:18.9]} 30... e3 {[%clk 0:00:56.7]}
31. Rc7 {[%clk 0:00:17.2]} 31... exf2+ {[%clk 0:00:54.4]} 32. Qxf2 {[%clk
0:00:12.9]} 32... Qe3 {[%clk 0:00:53]} 33. Re1 {[%clk 0:00:05.1]} 33... Qxg3+
{[%clk 0:00:51.6]} 34. Kf1 {[%clk 0:00:03.7]} 34... Rf3 {[%clk 0:00:49.2]} 0-1

[Event "*** Titled Tuesday Blitz"]
[Site "Chess.com"]
[Date "2021.04.06"]
[Round "3"]
[White "Lenyas66"]
[Black "NTBT_DHS"]
[Result "0-1"]
[WhiteElo "2520"]
[BlackElo "2737"]
[TimeControl "180+1"]
[EndTime "10:28:07 PDT"]
[Termination "NTBT_DHS won by resignation"]

1. e4 {[%clk 0:03:00.9]} 1... g6 {[%clk 0:02:59.8]} 2. d4 {[%clk 0:03:00.2]}
2... Bg7 {[%clk 0:03:00.5]} 3. Nc3 {[%clk 0:02:59.7]} 3... a6 {[%clk 0:03:01]}
4. Be3 {[%clk 0:02:45.1]} 4... d6 {[%clk 0:02:58.3]} 5. Qd2 {[%clk 0:02:44.3]}
5... Nd7 {[%clk 0:02:57.4]} 6. h4 {[%clk 0:02:37.5]} 6... Ngf6 {[%clk
0:02:57.6]} 7. Bh6 {[%clk 0:02:29]} 7... Bxh6 {[%clk 0:02:57.5]} 8. Qxh6 {[%clk
0:02:28]} 8... c5 {[%clk 0:02:58]} 9. Nf3 {[%clk 0:02:20.7]} 9... cxd4 {[%clk
0:02:32.6]} 10. Nxd4 {[%clk 0:02:20.1]} 10... Qa5 {[%clk 0:02:22.5]} 11. O-O-O
{[%clk 0:02:16.9]} 11... b5 {[%clk 0:02:22.9]} 12. Nb3 {[%clk 0:01:42.6]} 12...
Qb6 {[%clk 0:02:20]} 13. f3 {[%clk 0:01:39.8]} 13... Bb7 {[%clk 0:02:18.2]} 14.
g4 {[%clk 0:01:24.8]} 14... Rc8 {[%clk 0:02:14.7]} 15. h5 {[%clk 0:01:18.1]}
15... b4 {[%clk 0:02:08.4]} 16. Nd5 {[%clk 0:00:57.2]} 16... Bxd5 {[%clk
0:02:08.3]} 17. exd5 {[%clk 0:00:56.7]} 17... a5 {[%clk 0:01:49.6]} 18. hxg6
{[%clk 0:00:55.8]} 18... fxg6 {[%clk 0:01:40.2]} 19. Nd4 {[%clk 0:00:55.3]}
19... a4 {[%clk 0:01:29.1]} 20. g5 {[%clk 0:00:54]} 20... Nxd5 {[%clk
0:01:15.4]} 21. Qg7 {[%clk 0:00:53.7]} 21... Rf8 {[%clk 0:01:14.4]} 22. Rxh7
{[%clk 0:00:53]} 22... Rc5 {[%clk 0:00:42.7]} 23. Qxg6+ {[%clk 0:00:49.9]} 23...
Kd8 {[%clk 0:00:41.1]} 24. Ne6+ {[%clk 0:00:49.9]} 24... Kc8 {[%clk 0:00:41]}
25. Nxf8 {[%clk 0:00:47.3]} 25... Nxf8 {[%clk 0:00:32]} 26. Rh8 {[%clk
0:00:45.6]} 26... b3 {[%clk 0:00:31.5]} 27. Rxf8+ {[%clk 0:00:43.5]} 27... Kb7
{[%clk 0:00:29.6]} 28. axb3 {[%clk 0:00:40.9]} 28... axb3 {[%clk 0:00:28.8]} 29.
Bd3 {[%clk 0:00:36.5]} 29... bxc2 {[%clk 0:00:28]} 30. Bxc2 {[%clk 0:00:35.4]}
30... Ne3 {[%clk 0:00:26.1]} 31. Qe4+ {[%clk 0:00:31.2]} 31... d5 {[%clk
0:00:26.2]} 32. Qxe7+ {[%clk 0:00:31.1]} 32... Rc7 {[%clk 0:00:26.5]} 33. Qd8
{[%clk 0:00:22.7]} 33... Rxc2+ {[%clk 0:00:25.9]} 0-1

[Event "*** Titled Tuesday Blitz"]
[Site "Chess.com"]
[Date "2021.04.06"]
[Round "3"]
[White "Zhigalko_Sergei"]
[Black "StockholmMissile"]
[Result "0-1"]
[WhiteElo "2905"]
[BlackElo "2582"]
[TimeControl "180+1"]
[EndTime "10:28:10 PDT"]
[Termination "StockholmMissile won on time"]

1. e4 {[%clk 0:03:00.9]} 1... e5 {[%clk 0:02:59.5]} 2. Nf3 {[%clk 0:03:00.6]}
2... Nc6 {[%clk 0:02:59.3]} 3. Bc4 {[%clk 0:03:01]} 3... Bc5 {[%clk 0:02:58.8]}
4. b4 {[%clk 0:03:01.3]} 4... Bxb4 {[%clk 0:02:58.8]} 5. c3 {[%clk 0:03:01.6]}
5... Ba5 {[%clk 0:02:59]} 6. d4 {[%clk 0:03:01.9]} 6... exd4 {[%clk 0:02:59.2]}
7. O-O {[%clk 0:03:02.1]} 7... Nge7 {[%clk 0:02:49.9]} 8. Ng5 {[%clk 0:02:58.9]}
8... d5 {[%clk 0:02:45.3]} 9. Nxf7 {[%clk 0:02:58.5]} 9... Kxf7 {[%clk
0:02:42.2]} 10. exd5 {[%clk 0:02:59.1]} 10... Ne5 {[%clk 0:02:38.7]} 11. Bb3
{[%clk 0:02:58.9]} 11... Bxc3 {[%clk 0:02:23]} 12. Nxc3 {[%clk 0:02:39.4]} 12...
dxc3 {[%clk 0:02:23.9]} 13. d6+ {[%clk 0:02:08.9]} 13... Ke8 {[%clk 0:02:17.8]}
14. Qh5+ {[%clk 0:01:09.3]} 14... N7g6 {[%clk 0:02:08.8]} 15. Re1 {[%clk
0:00:34.5]} 15... cxd6 {[%clk 0:01:26.1]} 16. Bg5 {[%clk 0:00:34.2]} 16... Qb6
{[%clk 0:01:14.9]} 17. Rad1 {[%clk 0:00:32.3]} 17... Rf8 {[%clk 0:01:06.9]} 18.
Be3 {[%clk 0:00:25.9]} 18... Qc7 {[%clk 0:00:41.8]} 19. Bd4 {[%clk 0:00:17.3]}
19... Qe7 {[%clk 0:00:20]} 20. Bxc3 {[%clk 0:00:12.3]} 20... Bg4 {[%clk
0:00:18.2]} 21. Qxh7 {[%clk 0:00:12]} 21... Bxd1 {[%clk 0:00:17.7]} 22. Bxd1
{[%clk 0:00:03.2]} 22... Rh8 {[%clk 0:00:16.7]} 23. Qxg7 {[%clk 0:00:01.1]}
23... Qxg7 {[%clk 0:00:16.3]} 0-1

[Event "*** Titled Tuesday Blitz"]
[Site "Chess.com"]
[Date "2021.04.06"]
[Round "3"]
[White "friesnielsen2302"]
[Black "krasavetc"]
[Result "0-1"]
[WhiteElo "2529"]
[BlackElo "2363"]
[TimeControl "180+1"]
[EndTime "10:28:11 PDT"]
[Termination "krasavetc won by resignation"]

1. Nf3 {[%clk 0:02:59.9]} 1... Nf6 {[%clk 0:02:59]} 2. g3 {[%clk 0:02:59.7]}
2... e6 {[%clk 0:02:58.1]} 3. Bg2 {[%clk 0:03:00.1]} 3... c5 {[%clk 0:02:58.7]}
4. O-O {[%clk 0:03:00.6]} 4... Nc6 {[%clk 0:02:59.2]} 5. d3 {[%clk 0:02:58]}
5... Be7 {[%clk 0:02:58.8]} 6. Nc3 {[%clk 0:02:56.4]} 6... d5 {[%clk 0:02:58.6]}
7. e4 {[%clk 0:02:55.2]} 7... O-O {[%clk 0:02:58.5]} 8. Re1 {[%clk 0:02:52]}
8... d4 {[%clk 0:02:57.4]} 9. Ne2 {[%clk 0:02:51.6]} 9... e5 {[%clk 0:02:57.6]}
10. Rf1 {[%clk 0:02:51.8]} 10... Ne8 {[%clk 0:02:56.7]} 11. Nd2 {[%clk
0:02:51.7]} 11... f6 {[%clk 0:02:56]} 12. f4 {[%clk 0:02:51.7]} 12... Be6 {[%clk
0:02:55.8]} 13. f5 {[%clk 0:02:51.3]} 13... Bf7 {[%clk 0:02:56]} 14. g4 {[%clk
0:02:51.8]} 14... b5 {[%clk 0:02:56.4]} 15. Ng3 {[%clk 0:02:51.5]} 15... c4
{[%clk 0:02:55.9]} 16. a3 {[%clk 0:02:49.9]} 16... Rc8 {[%clk 0:02:55.1]} 17. h4
{[%clk 0:02:49.8]} 17... a5 {[%clk 0:02:44.6]} 18. Nf3 {[%clk 0:02:48.4]} 18...
a4 {[%clk 0:02:34.3]} 19. g5 {[%clk 0:02:48.4]} 19... cxd3 {[%clk 0:02:33.6]}
20. cxd3 {[%clk 0:02:48.2]} 20... Na5 {[%clk 0:02:33.3]} 21. g6 {[%clk
0:02:45.4]} 21... hxg6 {[%clk 0:02:31.8]} 22. fxg6 {[%clk 0:02:45]} 22... Bxg6
{[%clk 0:02:32.2]} 23. h5 {[%clk 0:02:45.2]} 23... Bh7 {[%clk 0:02:28.7]} 24.
Nh4 {[%clk 0:02:45.1]} 24... Nb3 {[%clk 0:02:27.4]} 25. Rb1 {[%clk 0:02:45.2]}
25... Nd6 {[%clk 0:02:17.1]} 26. Qg4 {[%clk 0:02:44.1]} 26... Nxc1 {[%clk
0:02:03.2]} 27. Rbxc1 {[%clk 0:02:43.3]} 27... Rxc1 {[%clk 0:02:03.8]} 28. Rxc1
{[%clk 0:02:43.2]} 28... f5 {[%clk 0:01:57.1]} 29. Nhxf5 {[%clk 0:02:38.6]}
29... Bxf5 {[%clk 0:01:53.2]} 30. exf5 {[%clk 0:02:38]} 30... Bg5 {[%clk
0:01:51.3]} 31. Rc6 {[%clk 0:02:31.8]} 31... Be3+ {[%clk 0:01:49.3]} 32. Kh1
{[%clk 0:02:29.5]} 32... Kh8 {[%clk 0:01:43.8]} 33. Bd5 {[%clk 0:02:11.5]} 33...
Nxf5 {[%clk 0:01:18.8]} 34. Be4 {[%clk 0:01:49.5]} 34... Nh6 {[%clk 0:01:01.6]}
35. Qh3 {[%clk 0:01:35.2]} 35... Qg5 {[%clk 0:00:59.7]} 36. Rc8 {[%clk
0:01:30.6]} 36... Qf4 {[%clk 0:00:46.9]} 37. Rxf8+ {[%clk 0:01:19.4]} 37... Qxf8
{[%clk 0:00:46.7]} 38. Nf5 {[%clk 0:01:19.4]} 38... Qc8 {[%clk 0:00:35.6]} 39.
Qg2 {[%clk 0:01:05.7]} 39... Nxf5 {[%clk 0:00:27.8]} 40. Qg6 {[%clk 0:01:04.8]}
40... Qc1+ {[%clk 0:00:25.9]} 41. Kg2 {[%clk 0:01:04.9]} 41... Qg1+ {[%clk
0:00:25.9]} 42. Kh3 {[%clk 0:01:04.3]} 42... Qxg6 {[%clk 0:00:25]} 43. hxg6
{[%clk 0:01:03.9]} 43... Nd6 {[%clk 0:00:25]} 44. Bd5 {[%clk 0:01:04.1]} 44...
Bc1 {[%clk 0:00:25.1]} 45. b3 {[%clk 0:01:02.9]} 45... axb3 {[%clk 0:00:23.3]}
46. Bxb3 {[%clk 0:01:02.6]} 46... Bxa3 {[%clk 0:00:23.8]} 47. Kg4 {[%clk
0:01:02.8]} 47... Bc1 {[%clk 0:00:24.1]} 48. Kf3 {[%clk 0:01:02.4]} 48... b4
{[%clk 0:00:24]} 49. Ke2 {[%clk 0:01:02.3]} 49... Bf4 {[%clk 0:00:24.9]} 50. Kf3
{[%clk 0:01:00.2]} 50... Nb7 {[%clk 0:00:23.8]} 0-1

[Event "*** Titled Tuesday Blitz"]
[Site "Chess.com"]
[Date "2021.04.06"]
[Round "3"]
[White "BogdanDeac"]
[Black "Borsuk_Konstantin"]
[Result "1-0"]
[WhiteElo "3055"]
[BlackElo "2678"]
[TimeControl "180+1"]
[EndTime "10:28:13 PDT"]
[Termination "BogdanDeac won by checkmate"]

1. d4 {[%clk 0:03:00.9]} 1... Nf6 {[%clk 0:02:59.5]} 2. Nf3 {[%clk 0:03:00.1]}
2... b6 {[%clk 0:02:58.1]} 3. c4 {[%clk 0:02:58.6]} 3... Bb7 {[%clk 0:02:58]} 4.
g3 {[%clk 0:02:58.6]} 4... g6 {[%clk 0:02:57.3]} 5. Bg2 {[%clk 0:02:58.6]} 5...
Bg7 {[%clk 0:02:57.9]} 6. O-O {[%clk 0:02:57.8]} 6... O-O {[%clk 0:02:58]} 7.
Qc2 {[%clk 0:02:58.3]} 7... e6 {[%clk 0:02:43]} 8. Nc3 {[%clk 0:02:53]} 8... c5
{[%clk 0:02:43.4]} 9. e4 {[%clk 0:02:52.2]} 9... cxd4 {[%clk 0:02:38.4]} 10.
Nxd4 {[%clk 0:02:53.1]} 10... Nc6 {[%clk 0:02:05.2]} 11. Ndb5 {[%clk 0:02:35.1]}
11... Ne8 {[%clk 0:02:00.6]} 12. Bf4 {[%clk 0:02:24.9]} 12... a6 {[%clk
0:01:36.4]} 13. Nd6 {[%clk 0:02:22.6]} 13... Nd4 {[%clk 0:01:21.8]} 14. Qd3
{[%clk 0:02:17.5]} 14... Bc6 {[%clk 0:01:16.7]} 15. Be3 {[%clk 0:01:27.7]} 15...
e5 {[%clk 0:01:04.6]} 16. Nxe8 {[%clk 0:01:12.9]} 16... Rxe8 {[%clk 0:01:04.1]}
17. f4 {[%clk 0:01:13.2]} 17... b5 {[%clk 0:00:58.9]} 18. fxe5 {[%clk
0:01:03.7]} 18... Ne6 {[%clk 0:00:52.9]} 19. cxb5 {[%clk 0:01:03.1]} 19... axb5
{[%clk 0:00:51.9]} 20. Nxb5 {[%clk 0:01:02.3]} 20... Bxb5 {[%clk 0:00:41]} 21.
Qxb5 {[%clk 0:01:01.2]} 21... Rb8 {[%clk 0:00:33.2]} 22. Qe2 {[%clk 0:00:58.7]}
22... Bxe5 {[%clk 0:00:32.4]} 23. Rab1 {[%clk 0:00:57.6]} 23... Qa5 {[%clk
0:00:30.2]} 24. Qf2 {[%clk 0:00:40.6]} 24... f6 {[%clk 0:00:28.5]} 25. b3 {[%clk
0:00:40.5]} 25... Ra8 {[%clk 0:00:18.9]} 26. a4 {[%clk 0:00:39.9]} 26... Reb8
{[%clk 0:00:18.5]} 27. Rfd1 {[%clk 0:00:39.1]} 27... Qc7 {[%clk 0:00:17.4]} 28.
Bf1 {[%clk 0:00:35.4]} 28... Kg7 {[%clk 0:00:15.6]} 29. Rbc1 {[%clk 0:00:31.1]}
29... Qd8 {[%clk 0:00:14.9]} 30. Bc4 {[%clk 0:00:31.2]} 30... Ng5 {[%clk
0:00:14.6]} 31. Bxg5 {[%clk 0:00:28.1]} 31... fxg5 {[%clk 0:00:14.7]} 32. Qf7+
{[%clk 0:00:28.4]} 32... Kh6 {[%clk 0:00:14.9]} 33. Rxd7 {[%clk 0:00:29]} 33...
Qh8 {[%clk 0:00:15]} 34. Qe6 {[%clk 0:00:26.6]} 34... Re8 {[%clk 0:00:13.9]} 35.
Qh3# {[%clk 0:00:26.3]} 1-0

[Event "*** Titled Tuesday Blitz"]
[Site "Chess.com"]
[Date "2021.04.06"]
[Round "3"]
[White "TimKett"]
[Black "Horizonevent"]
[Result "0-1"]
[WhiteElo "2241"]
[BlackElo "2495"]
[TimeControl "180+1"]
[EndTime "10:28:13 PDT"]
[Termination "Horizonevent won by resignation"]

1. e4 {[%clk 0:03:00.9]} 1... e5 {[%clk 0:00:58.1]} 2. f4 {[%clk 0:02:59.1]}
2... Nc6 {[%clk 0:00:58.5]} 3. Nc3 {[%clk 0:02:56.9]} 3... exf4 {[%clk
0:00:57.4]} 4. Nf3 {[%clk 0:02:56]} 4... d6 {[%clk 0:00:57.9]} 5. d4 {[%clk
0:02:51.8]} 5... g5 {[%clk 0:00:58.2]} 6. h4 {[%clk 0:02:51]} 6... g4 {[%clk
0:00:58.3]} 7. Ng5 {[%clk 0:02:51]} 7... h6 {[%clk 0:00:57]} 8. Nxf7 {[%clk
0:02:50.7]} 8... Kxf7 {[%clk 0:00:56.6]} 9. Bc4+ {[%clk 0:02:47.9]} 9... Kg7
{[%clk 0:00:56.1]} 10. Bxf4 {[%clk 0:02:47.6]} 10... Be7 {[%clk 0:00:55]} 11.
O-O {[%clk 0:02:44.4]} 11... Nf6 {[%clk 0:00:54.1]} 12. Qd3 {[%clk 0:02:04.1]}
12... Nh5 {[%clk 0:00:51.9]} 13. Nd5 {[%clk 0:01:47.3]} 13... Bxh4 {[%clk
0:00:47.8]} 14. e5 {[%clk 0:01:19.9]} 14... dxe5 {[%clk 0:00:44]} 15. dxe5
{[%clk 0:01:17.4]} 15... Be6 {[%clk 0:00:41.5]} 16. Qe4 {[%clk 0:01:00.5]} 16...
Rf8 {[%clk 0:00:37.2]} 17. Rad1 {[%clk 0:00:57.9]} 17... Bxd5 {[%clk 0:00:27]}
18. Rxd5 {[%clk 0:00:50.6]} 18... Qe7 {[%clk 0:00:27.3]} 19. e6 {[%clk
0:00:37.6]} 19... Nf6 {[%clk 0:00:24.2]} 20. Be5 {[%clk 0:00:28.3]} 20... Nxe5
{[%clk 0:00:23]} 21. Qxe5 {[%clk 0:00:28.1]} 21... Rad8 {[%clk 0:00:20.2]} 22.
Rfd1 {[%clk 0:00:25.6]} 22... Rxd5 {[%clk 0:00:19.9]} 23. Rxd5 {[%clk
0:00:20.8]} 23... Rd8 {[%clk 0:00:19.6]} 24. Rxd8 {[%clk 0:00:17]} 24... Qxd8
{[%clk 0:00:20.5]} 25. e7 {[%clk 0:00:16.9]} 25... Qd1+ {[%clk 0:00:20.6]} 26.
Kh2 {[%clk 0:00:16.4]} 26... g3+ {[%clk 0:00:19.5]} 27. Qxg3+ {[%clk 0:00:07.9]}
27... Bxg3+ {[%clk 0:00:19.1]} 28. Kxg3 {[%clk 0:00:06.6]} 28... Qd6+ {[%clk
0:00:20]} 0-1

[Event "*** Titled Tuesday Blitz"]
[Site "Chess.com"]
[Date "2021.04.06"]
[Round "3"]
[White "Rakesh"]
[Black "MirMan90"]
[Result "1-0"]
[WhiteElo "2502"]
[BlackElo "2695"]
[TimeControl "180+1"]
[EndTime "10:28:14 PDT"]
[Termination "Rakesh won by resignation"]

1. e4 {[%clk 0:02:57.7]} 1... c5 {[%clk 0:02:58.6]} 2. c3 {[%clk 0:02:55.1]}
2... Nf6 {[%clk 0:02:57.5]} 3. e5 {[%clk 0:02:55.3]} 3... Nd5 {[%clk 0:02:58]}
4. d4 {[%clk 0:02:56.1]} 4... cxd4 {[%clk 0:02:58]} 5. Nf3 {[%clk 0:02:56.1]}
5... e6 {[%clk 0:02:57.9]} 6. cxd4 {[%clk 0:02:57]} 6... d6 {[%clk 0:02:57.7]}
7. Bc4 {[%clk 0:02:53]} 7... Be7 {[%clk 0:02:57.6]} 8. O-O {[%clk 0:02:52.9]}
8... O-O {[%clk 0:02:57.5]} 9. Qe2 {[%clk 0:02:53.2]} 9... Nc6 {[%clk
0:02:57.3]} 10. Bd2 {[%clk 0:02:49.2]} 10... Bd7 {[%clk 0:02:27.4]} 11. Nc3
{[%clk 0:02:46.5]} 11... Nxc3 {[%clk 0:02:18.5]} 12. Bxc3 {[%clk 0:02:46.5]}
12... Rc8 {[%clk 0:02:16.9]} 13. Rad1 {[%clk 0:02:41.3]} 13... Qb6 {[%clk
0:01:50.4]} 14. d5 {[%clk 0:02:33.6]} 14... exd5 {[%clk 0:01:44.6]} 15. Bxd5
{[%clk 0:02:28.4]} 15... dxe5 {[%clk 0:01:32]} 16. Bxf7+ {[%clk 0:02:14]} 16...
Rxf7 {[%clk 0:01:30.6]} 17. Rxd7 {[%clk 0:02:14.9]} 17... Bf6 {[%clk 0:01:18.9]}
18. Rxf7 {[%clk 0:01:59.6]} 18... Kxf7 {[%clk 0:01:19.8]} 19. Nxe5+ {[%clk
0:01:54.6]} 19... Nxe5 {[%clk 0:01:17.4]} 20. Bxe5 {[%clk 0:01:55.5]} 20... Bxe5
{[%clk 0:00:49.2]} 21. Qxe5 {[%clk 0:01:56.4]} 21... Qe6 {[%clk 0:00:49]} 22.
Qh5+ {[%clk 0:01:50.2]} 22... Kg8 {[%clk 0:00:45.4]} 23. h3 {[%clk 0:01:47.7]}
23... Qxa2 {[%clk 0:00:41.8]} 24. Rd1 {[%clk 0:01:36.3]} 24... Qc4 {[%clk
0:00:20.6]} 25. Qe5 {[%clk 0:01:05]} 25... Qf7 {[%clk 0:00:18.8]} 26. Qb5 {[%clk
0:01:00.4]} 26... a6 {[%clk 0:00:18]} 27. Qb6 {[%clk 0:00:57.8]} 27... h6 {[%clk
0:00:17.8]} 28. Rd3 {[%clk 0:00:54.4]} 28... Rc6 {[%clk 0:00:17.2]} 29. Qd8+
{[%clk 0:00:51.7]} 29... Kh7 {[%clk 0:00:17.8]} 30. Qd4 {[%clk 0:00:49.7]} 30...
Qf6 {[%clk 0:00:17.1]} 31. Qe4+ {[%clk 0:00:49.5]} 31... Qg6 {[%clk 0:00:17.6]}
32. Qe3 {[%clk 0:00:48.2]} 32... Re6 {[%clk 0:00:16.7]} 33. Qf3 {[%clk
0:00:46.8]} 33... Qe4 {[%clk 0:00:16.2]} 34. Qg3 {[%clk 0:00:45.7]} 34... Qe1+
{[%clk 0:00:15.6]} 35. Kh2 {[%clk 0:00:46.2]} 35... Qe5 {[%clk 0:00:16.2]} 36.
f4 {[%clk 0:00:46.1]} 36... Qxb2 {[%clk 0:00:15.8]} 37. f5 {[%clk 0:00:43.4]}
37... Re7 {[%clk 0:00:16.1]} 38. Qg6+ {[%clk 0:00:40.6]} 1-0